bitfinex/quotes_ETHUSD_20250810
["timestamp","ask_amount","ask_price","bid_price","bid_amount"]
[1754848519741,6.40031399,4232.6,4232.5,0.1184]
[1754848520313,6.88121399,4232.6,4232.5,0.1184]
[1754848520841,6.88321399,4232.6,4232.5,0.1184]
[1754848521508,4.0397,4232.6,4232.5,0.1184]
[1754848521709,3.58,4232.6,4232.5,0.1184]
[1754848522522,5.94261399,4232.6,4232.5,0.1184]
[1754848522734,6.40231399,4232.6,4232.5,0.1184]
[1754848523143,6.88321399,4232.6,4232.5,0.1184]
[1754848523344,6.88221399,4232.6,4232.5,0.1184]
[1754848524348,6.88221399,4232.6,4231.6,0.041]
[1754848524349,2.36286698,4232.2,4231.6,0.041]
[1754848524518,2.36286698,4232.2,4232.1,0.1184]
[1754848524714,6.88046698,4232.2,4232.1,0.1184]
[1754848527833,2.36289312,4232.1,4231.8,0.1184]
[1754848528150,3.577,4232.0,4231.8,0.1184]
[1754848528547,0.9406,4231.9,4231.8,0.1184]
[1754848528754,3.30360479,4231.9,4231.8,0.1184]
[1754848528959,0.9406,4231.9,4231.8,0.1184]
[1754848529249,3.582,4231.9,4231.8,2.82606063]
[1754848529418,3.582,4231.9,4231.8,3.40218323]
[1754848529621,3.582,4231.9,4231.8,1.0391226]
[1754848529854,3.582,4231.9,4231.8,3.40218323]
[1754848530348,3.582,4231.9,4231.8,0.9860226]
[1754848531727,3.582,4231.9,4231.8,3.34908323]
[1754848531927,3.583,4231.9,4231.8,0.9860226]
[1754848532155,3.583,4231.9,4231.8,2.82605006]
[1754848532454,3.583,4231.9,4231.8,0.463]
[1754848532658,3.583,4231.9,4231.8,0.1184]
[1754848532822,5.94600479,4231.9,4231.8,0.1184]
[1754848533025,6.88660479,4231.9,4231.8,0.1184]
[1754848533426,7.8115583,4231.9,4231.8,0.1184]
[1754848533859,7.8115583,4231.9,4231.6,0.041]
[1754848533860,2.36311647,4231.7,4231.6,0.041]
[1754848534038,5.94711647,4231.7,4231.6,0.041]
[1754848534233,6.88771647,4231.7,4231.6,0.041]
[1754848535074,6.88871647,4231.7,4231.6,0.041]
[1754848537238,7.91822395,4231.7,4231.6,0.041]
[1754848539840,10.91822395,4231.7,4231.6,0.041]
[1754848540045,2.36322816,4231.5,4231.4,0.499]
[1754848540342,5.91328401,4231.4,4230.6,0.04]
[1754848540747,7.35959648,4231.4,4230.6,0.04]
[1754848540932,9.0471373,4231.4,4230.6,0.04]
[1754848541132,8.54142483,4231.4,4230.6,0.04]
[1754848541532,7.99142483,4231.4,4230.6,0.04]
[1754848541863,11.69482483,4231.4,4230.6,0.1584]
[1754848542051,4.16922483,4231.4,4230.6,0.04]
[1754848542250,5.94928401,4231.4,4231.2,0.1184]
[1754848542451,2.36328401,4231.4,4231.2,0.1184]
[1754848542668,3.588,4231.4,4231.2,0.1184]
[1754848542838,5.95128401,4231.4,4231.2,0.1184]
[1754848543043,3.588,4231.4,4231.2,0.1184]
[1754848545042,5.95128401,4231.4,4231.2,0.1184]
[1754848545244,3.588,4231.4,4231.2,0.1184]
[1754848548067,5.95128401,4231.4,4231.2,0.1184]
[1754848548669,2.36328401,4231.4,4231.2,0.1184]
[1754848548999,5.94928401,4231.4,4231.2,0.1184]
[1754848552062,5.94828401,4231.4,4231.2,0.1184]
[1754848558653,6.88938401,4231.4,4231.2,0.1184]
[1754848558859,6.44768401,4231.4,4231.2,0.1184]
[1754848559181,5.94828401,4231.4,4231.2,0.1184]
[1754848559380,3.585,4231.4,4231.2,0.1184]
[1754848561455,5.94828401,4231.4,4231.2,0.1184]
[1754848561654,4.5261,4231.4,4231.2,0.1184]
[1754848562080,4.0844,4231.4,4231.2,0.1184]
[1754848562296,5.94828401,4231.4,4231.2,0.1184]
[1754848562457,4.0844,4231.4,4231.2,0.1184]
[1754848562889,4.5261,4231.4,4231.2,0.1184]
[1754848563406,6.88938401,4231.4,4231.2,0.1184]
[1754848564187,6.89138401,4231.4,4231.2,0.1184]
[1754848565182,6.44968401,4231.4,4231.2,0.1184]
[1754848565598,2.86468401,4231.4,4231.2,0.1184]
[1754848565757,6.44568401,4231.4,4231.2,0.1184]
[1754848569467,6.88738401,4231.4,4231.2,0.1184]
[1754848570490,6.87133981,4231.4,4231.2,0.1184]
[1754848570690,7.81243981,4231.4,4231.2,0.1184]
[1754848573392,6.88738401,4231.4,4231.2,0.1184]
[1754848573695,5.94428401,4231.4,4231.2,0.1184]
[1754848578013,6.41468401,4231.4,4231.2,0.1184]
[1754848578690,6.87978401,4231.4,4231.2,0.1184]
[1754848580309,3.30078401,4231.4,4231.2,0.1184]
[1754848580478,6.87978401,4231.4,4231.2,0.1184]
[1754848582625,8.31152213,4231.4,4231.2,0.1184]
[1754848583185,8.31152213,4231.4,4230.8,0.001]
[1754848583416,8.42992213,4231.4,4230.8,0.001]
[1754848584820,12.20010879,4231.4,4230.8,0.001]
[1754848588797,42.83395606,4231.4,4230.8,0.001]
[1754848589826,12.20110879,4231.4,4230.8,0.001]
[1754848590923,10.71460879,4231.4,4230.8,0.001]
[1754848591112,7.37602213,4231.4,4230.8,0.001]
[1754848591307,5.94428401,4231.4,4231.0,0.1184]
[1754848592011,2.36528401,4231.4,4231.0,0.1184]
[1754848592396,5.94528401,4231.4,4231.3,0.4425]
[1754848592598,5.94528401,4231.4,4231.3,0.5609]
[1754848592992,5.94528401,4231.4,4231.3,0.1194]
[1754848596332,5.94528401,4231.4,4231.3,0.001]
[1754848596333,7.71163078,4231.4,4231.3,0.001]
[1754848596497,7.83003078,4231.4,4231.3,0.001]
[1754848596701,11.88593492,4231.4,4231.3,0.001]
[1754848598304,11.88495896,4231.4,4231.3,0.001]
[1754848598833,7.28985896,4231.4,4231.3,0.001]
[1754848599011,10.40145896,4231.4,4231.3,0.001]
[1754848599432,11.33695896,4231.4,4231.3,0.001]
[1754848600432,10.40145896,4231.4,4231.3,0.001]
[1754848601108,11.33695896,4231.4,4231.3,0.001]
[1754848602606,10.83203078,4231.4,4231.3,0.001]
[1754848603238,11.33773001,4231.4,4231.3,0.001]
[1754848612322,10.40023001,4231.4,4231.3,0.001]
[1754848614550,11.33573001,4231.4,4231.3,0.001]
[1754848616333,10.89353001,4231.4,4231.3,0.001]
[1754848616529,10.40023001,4231.4,4231.3,0.001]
[1754848619724,6.82023001,4231.4,4231.3,0.001]
[1754848619929,6.06268401,4231.4,4231.3,0.001]
[1754848620153,2.36528401,4231.4,4231.3,0.4742]
[1754848620321,5.94428401,4231.4,4231.3,0.5926]
[1754848620521,2.36528401,4231.4,4231.3,0.5926]
[1754848620726,3.581,4231.4,4231.3,0.9372]
[1754848622833,0.002,4231.4,4231.3,0.9372]
[1754848623071,3.581,4231.4,4231.3,1.26726398]
[1754848629044,0.002,4231.4,4231.3,3.63060385]
[1754848632071,0.002,4231.4,4231.3,3.65423724]
[1754848632245,0.002,4231.4,4231.3,7.20423724]
[1754848632444,0.002,4231.4,4231.3,7.18060385]
[1754848640376,0.002,4231.4,4231.3,5.81280385]
[1754848640579,0.4891,4231.4,4231.3,5.81280385]
[1754848640883,0.9578,4231.4,4231.3,5.81280385]
[1754848641542,0.002,4231.4,4231.3,5.81280385]
[1754848641748,0.9578,4231.4,4231.3,5.81280385]
[1754848643587,0.4891,4231.4,4231.3,5.81280385]
[1754848643750,0.002,4231.4,4231.3,5.81280385]
[1754848646262,0.9578,4231.4,4231.3,5.81280385]
[1754848646610,0.002,4231.4,4231.3,5.81280385]
[1754848647148,0.9578,4231.4,4231.3,5.81280385]
[1754848648368,0.002,4231.4,4231.3,5.81280385]
[1754848650963,0.002,4231.4,4231.3,6.26550385]
[1754848651158,0.002,4231.4,4231.3,5.81280385]
[1754848652010,0.002,4231.4,4231.3,6.26550385]
[1754848652175,0.002,4231.4,4231.3,5.81280385]
[1754848654774,0.002,4231.4,4231.3,6.26550385]
[1754848655296,0.002,4231.4,4231.3,5.81280385]
[1754848655865,0.002,4231.4,4231.3,6.26550385]
[1754848656893,0.002,4231.4,4231.3,5.81280385]
[1754848669210,0.002,4231.4,4231.3,6.82320385]
[1754848671538,0.002,4231.4,4231.3,6.36280385]
[1754848680424,0.002,4231.4,4231.3,5.81280385]
[1754848680624,0.002,4231.4,4231.3,5.48273987]
[1754848680625,0.9178,4231.4,4231.3,5.48273987]
[1754848682233,0.9178,4231.4,4231.3,0.1194]
[1754848683051,0.9178,4231.4,4231.3,2.48273987]
[1754848683436,0.9178,4231.4,4231.3,0.1194]
[1754848684947,0.9178,4231.4,4231.3,2.48273987]
[1754848685555,0.9178,4231.4,4231.3,0.1194]
[1754848685755,0.9178,4231.4,4231.3,2.48273987]
[1754848686233,0.9178,4231.4,4231.3,0.1194]
[1754848686742,0.9178,4231.4,4231.3,2.48273987]
[1754848687464,0.9178,4231.4,4231.3,0.1194]
[1754848688553,1.24589254,4231.4,4231.3,0.1194]
[1754848689267,3.60917655,4231.4,4231.3,0.1194]
[1754848691352,7.18617655,4231.4,4231.3,0.1194]
[1754848691952,3.60917655,4231.4,4231.3,0.1194]
[1754848692950,0.9178,4231.4,4231.3,0.1194]
[1754848693350,0.4878,4231.4,4231.3,0.1194]
[1754848693556,0.9178,4231.4,4231.3,0.1194]
[1754848694484,0.002,4231.4,4231.3,0.1194]
[1754848695274,0.002,4231.4,4231.3,2.48273987]
[1754848695572,0.002,4231.4,4231.3,2.96735826]
[1754848696380,0.002,4231.4,4231.3,2.48273987]
[1754848709655,0.9399,4231.4,4231.3,2.48273987]
[1754848710271,0.002,4231.4,4231.3,2.48273987]
[1754848722098,0.9399,4231.4,4231.3,2.48273987]
[1754848723081,0.002,4231.4,4231.3,2.48273987]
[1754848723282,0.9399,4231.4,4231.3,2.48273987]
[1754848726491,0.002,4231.4,4231.3,2.48273987]
[1754848726682,0.002,4231.4,4231.3,2.96735751]
[1754848727472,0.9399,4231.4,4231.3,0.1194]
[1754848727677,3.30318401,4231.4,4231.3,0.1194]
[1754848727881,6.87918401,4231.4,4231.3,0.1194]
[1754848728199,6.87918401,4231.4,4231.3,0.001]
[1754848744284,2.36333987,4231.3,4230.8,0.001]
[1754848744446,2.3635633,4230.9,4230.8,0.001]
[1754848744618,6.0579633,4230.9,4230.8,0.001]
[1754848744819,6.9769633,4230.9,4230.8,0.001]
[1754848754258,17.15704991,4230.9,4230.8,0.001]
[1754848754457,47.15704991,4230.9,4230.8,0.001]
[1754848754653,9.47409059,4230.9,4230.8,0.001]
[1754848755927,9.97993643,4230.9,4230.8,0.001]
[1754848756257,9.47409059,4230.9,4230.8,0.001]
[1754848756458,9.98013264,4230.9,4230.8,0.001]
[1754848759927,2.36367504,4230.7,4230.4,0.001]
[1754848760129,9.57771218,4230.7,4230.6,1e-08]
[1754848760432,11.00405423,4230.7,4230.6,1e-08]
[1754848761128,2.36384266,4230.4,4230.3,1e-08]
[1754848761358,5.94084266,4230.4,4230.3,1e-08]
[1754848761741,6.97954266,4230.4,4230.3,1e-08]
[1754848762041,7.66746665,4230.4,4230.3,1e-08]
[1754848766670,6.74716665,4230.4,4230.3,1e-08]
[1754848766835,3.17016665,4230.4,4230.3,1e-08]
[1754848767035,6.74716665,4230.4,4230.3,0.47280001]
[1754848767236,6.74716665,4230.4,4230.3,1e-08]
[1754848767935,6.74716665,4230.4,4230.3,0.47280001]
[1754848768367,6.74716665,4230.4,4230.3,1e-08]
[1754848768744,4.38332399,4230.4,4230.1,0.42280001]
[1754848769152,2.36389854,4230.3,4230.1,0.42280001]
[1754848769350,5.94095442,4230.2,4230.1,0.42280001]
[1754848770160,5.94095442,4230.2,4230.1,0.76740001]
[1754848771373,5.94095442,4230.2,4230.1,0.42280001]
[1754848771549,2.3640103,4230.1,4230.0,0.001]
[1754848771758,3.20634677,4230.1,4230.0,0.001]
[1754848773453,4.12664677,4230.1,4230.0,0.001]
[1754848775281,3.20634677,4230.1,4230.0,0.001]
[1754848781810,5.9400103,4230.1,4230.0,0.4738]
[1754848782157,5.9400103,4230.1,4230.0,0.001]
[1754848787455,6.8435103,4230.1,4230.0,0.001]
[1754848787763,7.35158304,4230.1,4230.0,0.001]
[1754848787970,2.36417797,4229.8,4229.7,0.1184]
[1754848788170,2.36423387,4229.7,4229.6,1e-08]
[1754848788406,2.36479296,4228.7,4228.3,0.1184]
[1754848788562,2.36479296,4228.7,4226.6,0.04]
[1754848788563,5.94079296,4228.7,4226.6,0.04]
[1754848788765,0.50791893,4228.6,4228.0,0.1184]
[1754848788996,0.50791893,4228.6,4228.3,0.1184]
[1754848788997,3.576,4228.6,4228.3,0.1184]
[1754848789159,2.36496074,4228.4,4228.3,0.1184]
[1754848789364,2.36501667,4228.3,4227.9,0.1184]
[1754848789667,2.36518448,4228.0,4227.9,0.1184]
[1754848789991,5.94118448,4228.0,4227.9,0.1184]
[1754848790369,2.36511569,4228.2,4227.9,0.1184]
[1754848790569,5.94117176,4228.1,4227.9,0.57]
[1754848790775,3.576,4228.0,4227.9,0.463]
[1754848791171,3.9035,4229.0,4227.9,0.463]
[1754848791374,2.36501759,4228.3,4228.0,0.4516]
[1754848791590,2.36501759,4228.3,4227.6,0.04]
[1754848791591,2.36491649,4228.5,4228.4,0.1184]
[1754848791794,5.94091649,4228.5,4228.4,0.1184]
[1754848792390,2.36503019,4228.3,4228.1,0.4516]
[1754848792591,3.576,4228.2,4228.1,0.4516]
[1754848792787,2.3651355,4228.1,4227.6,0.4916]
[1754848792985,3.576,4228.0,4227.6,0.85693071]
[1754848793391,3.576,4228.0,4227.9,0.1184]
[1754848794103,3.576,4228.0,4227.9,0.57]
[1754848794316,3.576,4228.0,4227.9,0.1184]
[1754848794870,5.94118448,4228.0,4227.9,0.1184]
[1754848795674,3.576,4228.0,4227.9,0.1184]
[1754848795875,3.577,4228.0,4227.9,0.1184]
[1754848796101,3.577,4228.0,4227.9,0.57]
[1754848796683,3.577,4228.0,4227.9,0.1184]
[1754848797076,3.2680602,4229.2,4227.9,0.9146]
[1754848797279,2.36497282,4228.4,4227.9,0.9146]
[1754848797479,3.577,4228.3,4228.0,0.4516]
[1754848797680,3.577,4228.3,4228.2,0.1184]
[1754848798212,2.36468112,4228.9,4228.2,0.57]
[1754848798508,2.36486689,4228.6,4228.2,0.4516]
[1754848798810,3.577,4228.5,4228.2,0.4516]
[1754848799215,3.577,4228.5,4228.4,0.1184]
[1754848799512,5.94190481,4228.5,4228.4,0.1184]
[1754848799878,3.577,4228.5,4228.4,0.1184]
[1754848800203,5.94190481,4228.5,4228.4,0.1184]
[1754848800590,3.577,4228.5,4228.4,0.1184]
[1754848800797,2.36479787,4228.7,4228.4,0.1184]
[1754848801130,0.1184,4229.2,4228.4,0.1184]
[1754848801131,3.577,4228.6,4228.4,0.1184]
[1754848801287,3.577,4228.5,4228.4,0.1184]
[1754848801618,0.4504,4228.9,4228.5,0.1184]
[1754848801817,3.577,4228.8,4228.5,0.1184]
[1754848802186,5.94177977,4228.8,4228.5,0.1184]
[1754848802383,2.36480109,4228.7,4228.5,0.1184]
[1754848802690,2.36475104,4228.8,4228.5,0.1184]
[1754848802891,3.578,4228.7,4228.5,0.1184]
[1754848803986,3.26834888,4228.6,4228.5,0.1184]
[1754848804588,2.36502618,4228.3,4228.0,0.1184]
[1754848804783,3.578,4228.2,4228.0,0.1184]
[1754848804989,2.36512854,4228.1,4228.0,0.1184]
[1754848805201,3.26862854,4228.1,4228.0,0.1184]
[1754848806915,2.36535231,4227.7,4227.6,0.04]
[1754848807086,5.94435231,4227.7,4227.6,0.04]
[1754848807419,6.84785231,4227.7,4227.6,0.04]
[1754848811143,3.26885231,4227.7,4227.6,0.04]
[1754848811313,6.84785231,4227.7,4227.6,0.04]
[1754848811503,7.91247623,4227.7,4227.6,0.04]
[1754848811699,4.33347623,4227.7,4227.6,0.04]
[1754848812007,7.91747623,4227.7,4227.6,0.04]
[1754848813617,2.36582817,4226.9,4226.6,0.032]
[1754848813823,3.584,4226.8,4226.6,0.032]
[1754848814025,5.94989938,4226.8,4226.6,0.032]
[1754848814243,2.36591194,4226.7,4226.6,0.032]
[1754848814538,3.584,4226.8,4226.6,0.032]
[1754848815504,5.94986586,4226.8,4226.6,0.032]
[1754848816545,2.36591194,4226.7,4226.6,0.032]
[1754848816897,2.36591194,4226.7,4226.6,0.1504]
[1754848817296,5.94986353,4226.8,4226.6,0.1504]
[1754848817498,2.36591194,4226.7,4226.6,0.1504]
[1754848817702,5.94986785,4226.8,4226.6,0.1504]
[1754848817902,2.36591194,4226.7,4226.6,0.1504]
[1754848819318,4.11858587,4226.7,4226.6,0.032]
[1754848822802,7.22588587,4226.7,4226.6,0.032]
[1754848822998,7.70258587,4226.7,4226.6,0.032]
[1754848823401,7.25818587,4226.7,4226.6,0.032]
[1754848823613,2.36591194,4226.7,4226.6,0.032]
[1754848823825,5.94991194,4226.7,4226.6,0.032]
[1754848824102,5.95091194,4226.7,4226.6,0.032]
[1754848824306,6.87201194,4226.7,4226.6,0.032]
[1754848824723,5.95091194,4226.7,4226.6,0.032]
[1754848825039,7.76045168,4226.7,4226.6,0.032]
[1754848827505,7.76145168,4226.7,4226.6,0.032]
[1754848828019,4.17545168,4226.7,4226.6,0.032]
[1754848828341,7.76145168,4226.7,4226.6,0.032]
[1754848828848,4.17545168,4226.7,4226.6,0.032]
[1754848829055,7.76145168,4226.7,4226.6,0.032]
[1754848830307,7.76145168,4226.7,4225.9,0.1184]
[1754848830308,2.36641582,4225.8,4225.7,0.1194]
[1754848830508,5.95241582,4225.8,4225.7,0.1194]
[1754848831122,0.1184,4226.3,4225.7,0.1194]
[1754848831123,4.36513974,4226.7,4225.7,0.1194]
[1754848831339,2.36641582,4225.8,4225.7,0.1194]
[1754848831544,5.95141582,4225.8,4225.7,0.1194]
[1754848833341,2.36641582,4225.8,4225.7,0.1194]
[1754848833549,5.95241582,4225.8,4225.7,0.5864]
[1754848833842,5.95241582,4225.8,4225.7,0.1194]
[1754848834243,5.95141582,4225.8,4225.7,0.1194]
[1754848835035,5.95141582,4225.8,4225.7,0.5864]
[1754848835555,5.95141582,4225.8,4225.7,0.1194]
[1754848836420,2.36641582,4225.8,4225.7,0.1194]
[1754848836618,5.95141582,4225.8,4225.7,0.1194]
[1754848837633,2.36641582,4225.8,4225.7,0.1194]
[1754848837855,5.95041582,4225.8,4225.7,0.1194]
[1754848838559,2.36641582,4225.8,4225.7,0.1194]
[1754848838766,5.95041582,4225.8,4225.7,0.1194]
[1754848839536,2.36641582,4225.8,4225.7,0.1194]
[1754848839845,5.95041582,4225.8,4225.7,0.1194]
[1754848841669,2.36641582,4225.8,4225.7,0.1194]
[1754848842072,3.584,4225.8,4225.7,0.5864]
[1754848842760,5.95041582,4225.8,4225.7,0.5864]
[1754848842960,5.95041582,4225.8,4225.7,0.1194]
[1754848843273,3.584,4225.8,4225.7,0.1194]
[1754848843438,5.95041582,4225.8,4225.7,0.1194]
[1754848843770,3.584,4225.8,4225.7,0.5864]
[1754848843949,3.584,4225.8,4225.7,0.1194]
[1754848844153,5.95041582,4225.8,4225.7,0.1194]
[1754848844538,2.3662601,4226.1,4225.7,0.1194]
[1754848844539,2.36636977,4225.9,4225.7,0.1194]
[1754848844739,3.583,4225.8,4225.7,0.1194]
[1754848846056,5.94941582,4225.8,4225.7,0.1194]
[1754848846658,6.87051582,4225.8,4225.7,0.1194]
[1754848846872,7.7941987,4225.8,4225.7,0.1194]
[1754848847574,2.71784361,4225.7,4225.6,1e-08]
[1754848847774,7.38454065,4225.7,4225.6,1e-08]
[1754848848289,7.38454065,4225.7,4224.6,0.04]
[1754848848290,2.36691992,4224.9,4224.6,0.04]
[1754848848493,2.36731215,4224.2,4223.6,0.04]
[1754848848648,2.36742424,4224.0,4223.9,0.1184]
[1754848849078,3.29372424,4224.0,4223.9,0.1184]
[1754848850186,4.21853119,4224.0,4223.9,0.1184]
[1754848850352,2.36759239,4223.7,4223.6,0.04]
[1754848850556,5.95759239,4223.7,4223.6,0.04]
[1754848851476,3.29389239,4223.7,4223.6,0.04]
[1754848851652,7.00429239,4223.7,4223.6,0.04]
[1754848851853,7.94147297,4223.7,4223.6,0.04]
[1754848854657,8.64147297,4223.7,4223.6,0.04]
[1754848854868,8.65347297,4223.7,4223.6,0.04]
[1754848855160,7.01629239,4223.7,4223.6,0.04]
[1754848855978,10.7704956,4223.7,4223.6,0.04]
[1754848856549,7.01629239,4223.7,4223.6,0.04]
[1754848856754,7.01729239,4223.7,4223.6,0.04]
[1754848856949,2.48599239,4223.7,4223.6,0.04]
[1754848857198,3.606,4223.7,4223.6,0.04]
[1754848857353,5.97359239,4223.7,4223.6,0.04]
[1754848857553,5.97459239,4223.7,4223.6,0.04]
[1754848858565,3.41210645,4224.1,4223.6,0.04]
[1754848858770,3.607,4224.0,4223.6,0.04]
[1754848859174,2.36758061,4223.8,4223.6,0.04]
[1754848859373,3.606,4223.7,4223.6,0.4729]
[1754848859786,3.606,4223.7,4223.6,0.5913]
[1754848859956,3.606,4223.7,4223.6,0.1584]
[1754848860158,2.36725611,4224.3,4223.6,0.1584]
[1754848860390,3.606,4224.2,4223.6,0.5913]
[1754848860595,2.36747888,4224.0,4223.9,0.1184]
[1754848860770,0.29312866,4224.5,4223.9,0.1184]
[1754848860968,3.606,4224.4,4223.9,0.1184]
[1754848861309,2.36681191,4225.1,4224.2,0.1184]
[1754848861310,3.606,4224.3,4224.2,0.1184]
[1754848861803,2.36721463,4224.4,4224.2,0.1184]
[1754848862004,3.607,4224.3,4224.2,0.1184]
[1754848862499,0.5706,4225.0,4224.2,0.1184]
[1754848862500,3.2930167,4225.3,4224.3,2.36723155]
[1754848862657,2.3668737,4225.0,4224.3,0.4329]
[1754848862856,2.3668737,4225.0,4224.9,0.1184]
[1754848863063,2.36663577,4225.5,4224.9,0.1184]
[1754848863258,2.36678605,4225.2,4224.9,0.1184]
[1754848863477,2.36663577,4225.5,4224.7,2.36701815]
[1754848863478,2.36658856,4225.5,4224.7,2.36701815]
[1754848863764,3.607,4225.4,4225.1,0.1184]
[1754848863966,5.683,4225.9,4224.8,0.4329]
[1754848864160,2.36608239,4226.4,4225.6,2.36652197]
[1754848864429,2.36614018,4226.3,4226.1,0.1184]
[1754848864700,0.88652171,4226.5,4226.1,0.1184]
[1754848864906,3.61,4226.4,4226.1,0.5513]
[1754848865311,3.61,4226.4,4226.1,0.4329]
[1754848865599,3.61,4226.4,4226.3,0.1184]
[1754848866003,3.609,4226.4,4226.3,0.1184]
[1754848866373,0.17553471,4226.5,4226.3,0.1184]
[1754848866607,0.002,4226.7,4226.3,0.41015399]
[1754848866765,3.61,4226.6,4226.5,2.36602389]
[1754848866969,3.61,4226.6,4226.5,3.30192389]
[1754848868066,3.611,4226.7,4226.6,2.36596791]
[1754848868279,3.611,4226.7,4226.6,3.18346791]
[1754848868995,3.611,4226.7,4226.6,2.79886791]
[1754848869194,3.611,4226.7,4226.6,0.4329]
[1754848869699,3.611,4226.7,4226.6,2.79886791]
[1754848870091,0.002,4226.7,4226.6,3.75026183]
[1754848871276,0.002,4226.7,4226.6,1.38429392]
[1754848871711,0.002,4226.7,4226.6,0.4329]
[1754848873209,0.002,4226.7,4226.5,0.1184]
[1754848873410,4.5333,4226.6,4226.5,0.1184]
[1754848874793,3.607,4226.6,4226.1,2.36619583]
[1754848874995,3.607,4226.6,4226.5,0.1184]
[1754848875214,6.89926791,4226.6,4226.5,0.1184]
[1754848875430,7.82998312,4226.6,4226.5,0.1184]
[1754848875920,2.36627063,4226.1,4225.4,2.36659546]
[1754848876224,3.608,4226.0,4225.2,3.0]
[1754848876393,3.608,4226.0,4225.9,0.1184]
[1754848879388,0.002,4226.7,4225.9,0.1184]
[1754848879706,2.36609029,4226.4,4225.6,2.36647687]
[1754848879890,2.36602861,4226.5,4225.7,2.36646887]
[1754848880090,0.9347,4226.4,4225.7,2.36646887]
[1754848880491,0.9347,4226.4,4226.3,0.1184]
[1754848881416,3.30077987,4226.4,4226.3,0.1184]
[1754848885793,2.36613586,4226.3,4224.0,0.4316]
[1754848886052,4.5407,4226.2,4223.8,0.4326]
[1754848886250,2.36720304,4224.4,4223.8,0.71193]
[1754848886531,2.36743676,4224.0,4223.8,0.71193]
[1754848886742,3.30218029,4223.9,4223.8,0.71193]
[1754848886898,3.30218029,4223.9,4223.8,0.001]
[1754848892314,6.91618029,4223.9,4223.8,0.001]
[1754848896335,3.614,4223.9,4223.8,0.1194]
[1754848897010,0.17505664,4224.0,4223.8,0.1194]
[1754848897211,5.97933157,4224.2,4223.8,0.1194]
[1754848897521,3.612,4224.2,4223.8,0.1194]
[1754848897720,5.97931835,4224.2,4224.1,0.1184]
[1754848898054,3.612,4224.2,4224.1,0.1184]
[1754848898424,3.613,4224.4,4224.1,0.1184]
[1754848898623,3.613,4224.5,4224.1,0.1184]
[1754848898829,5.98209124,4224.6,4224.1,0.1184]
[1754848899027,5.98209124,4224.6,4224.4,0.1184]
[1754848899617,3.615,4224.6,4224.4,0.1184]
[1754848901019,4.5497,4224.6,4224.4,0.1184]
[1754848901734,6.91680868,4224.6,4224.4,0.1184]
[1754848902135,2.36714404,4224.5,4224.4,0.1184]
[1754848902355,4.5497,4224.6,4224.4,0.1184]
[1754848903136,6.9167888,4224.6,4224.4,0.1184]
[1754848903354,4.56120469,4224.6,4224.4,0.1184]
[1754848903554,0.9347,4224.5,4224.3,0.1184]
[1754848903722,3.613,4224.4,4224.3,0.1184]
[1754848904126,3.614,4224.4,4224.3,0.1184]
[1754848904428,5.98113316,4224.6,4224.3,0.1184]
[1754848904763,4.5487,4224.6,4224.3,0.001]
[1754848904950,3.614,4224.6,4224.5,0.1184]
[1754848905253,3.79633315,4224.9,4224.5,0.9346]
[1754848905426,0.18033315,4224.9,4224.8,0.1184]
[1754848905752,3.616,4225.4,4224.8,0.1184]
[1754848906156,3.616,4225.4,4224.8,2.36696767]
[1754848906350,3.616,4225.4,4224.7,2.36702345]
[1754848906557,3.616,4225.4,4224.6,0.4316]
[1754848906558,3.616,4225.4,4224.6,2.79868766]
[1754848906766,0.17961082,4225.7,4224.8,0.55]
[1754848907066,0.002,4226.6,4226.3,2.36613316]
[1754848907272,0.002,4226.6,4225.7,0.55]
[1754848907459,0.002,4226.6,4226.0,2.36629179]
[1754848908128,0.002,4226.6,4225.9,2.36635206]
[1754848908333,4.77078263,4226.5,4225.6,3.0]
[1754848908562,4.77078263,4226.5,4223.4,2.36773165]
[1754848908563,2.3664594,4225.8,4224.9,2.36686698]
[1754848908737,2.36635982,4225.9,4224.8,2.3669472]
[1754848908933,2.36652783,4225.6,4224.7,5.36703116]
[1754848909135,0.4539,4225.5,4224.7,5.36703116]
[1754848909327,0.4539,4225.5,4224.7,1.13591352]
[1754848909841,2.82051002,4225.5,4224.7,3.50294126]
[1754848911160,2.36667837,4225.4,4224.7,3.50294163]
[1754848911658,2.82048514,4225.5,4224.8,2.36696707]
[1754848911837,0.491,4225.7,4224.9,3.0]
[1754848912037,4.0769,4225.6,4224.5,3.0]
[1754848912251,2.36686218,4225.1,4224.2,5.36726314]
[1754848912458,2.36686218,4225.1,4224.2,2.36726314]
[1754848913241,2.36682157,4225.1,4224.3,2.3682509]
[1754848913445,2.36676023,4225.2,4224.4,3.26630844]
[1754848914074,2.36685236,4225.1,4224.4,0.89912509]
[1754848914975,2.36685236,4225.1,4224.4,3.89912509]
[1754848915170,2.36686661,4225.0,4224.4,3.89912509]
[1754848915777,2.3668231,4225.1,4224.4,3.89912509]
[1754848915952,2.3668231,4225.1,4224.5,0.62673589]
[1754848916152,2.36686444,4225.0,4224.9,0.1184]
[1754848916544,0.9449,4225.2,4224.9,0.1184]
[1754848916752,6.9344311,4225.6,4224.9,0.1184]
[1754848917001,2.36658383,4225.5,4225.4,0.1184]
[1754848917481,2.82048383,4225.5,4225.4,0.1184]
[1754848917844,3.31148383,4225.5,4225.4,0.1184]
[1754848918696,2.36663984,4225.4,4224.3,0.001]
[1754848918984,2.48560007,4224.4,4224.3,0.001]
[1754848919280,9.11560007,4224.4,4224.3,1e-08]
[1754848919468,11.259302,4224.4,4224.3,1e-08]
[1754848924590,8.259302,4224.4,4224.3,1e-08]
[1754848927191,8.43598953,4224.4,4224.3,1e-08]